[Event "55th Rubinstein Memorial-A 2019"]
[Site "Polanica-Zdroj"]
[Date "2019.08.24"]
[Round "8.1"]
[White "Goluch, Piotr"]
[Black "Warakomski, Tomasz"]
[Result "1/2-1/2"]
[ECO "D11"]
[WhiteElo "2418"]
[BlackElo "2497"]
[Annotator "ChessBase"]
[PlyCount "204"]
[EventDate "2019.08.17"]
[EventType "swiss"]
[EventCountry "POL"]
[SourceTitle "playchess.com"]
[Source "ChessBase"]
[SourceQuality "1"]
[TimeControl "40/5400+30:1800+30"]

1. d4 {[%emt 0:00:00]} d5 {[%emt 0:02:12]} 2. c4 {[%emt 0:00:00]} c6 {[%emt 0:00:04]} 3. Nf3 {[%emt 0:00:00]} Nf6 {[%emt 0:00:04]} 4. e3 {[%emt 0:00:00]} Bg4 {[%emt 0:00:03]} 5. Qb3 {[%emt 0:01:49]} Qb6 {[%emt 0:00:05]} 6. Ne5 {[%emt 0:00:50]} Bf5 {[%emt 0:00:04]} 7. Qxb6 {[%emt 0:01:39]} axb6 {[%emt 0:00:06]} 8. cxd5 {[%emt 0:05:41]} Nxd5 {[%emt 0:00:39]} 9. g4 {[%emt 0:01:41]} Be6 {[%emt 0:05:25]} 10. Bd2 {[%emt 0:09:15]} f6 {[%emt 0:01:47]} 11. Nd3 {[%emt 0:04:33]} Bxg4 {[%emt 0:00:14]} 12. Rg1 {[%emt 0:00:18]} Bf5 {[%emt 0:07:41]} 13. f3 {[%emt 0:01:59]} Bxd3 {[%emt 0:00:05]} 14. Bxd3 {[%emt 0:00:03]} e6 {[%emt 0:00:03]} 15. Nc3 {[%emt 0:00:04]} Nb4 {[%emt 0:05:24]} 16. Bb1 {[%emt 0:00:46]} f5 {[%emt 0:08:16]} 17. a3 {[%emt 0:00:50]} g6 {[%emt 0:00:11]} 18. Na2 {[%emt 0:00:02]} N4a6 {[%emt 0:03:02]} 19. Nc1 {[%emt 0:03:49]} Nc7 {[%emt 0:03:11]} 20. Ba2 {[%emt 0:00:40]} Nd7 {[%emt 0:03:28]} 21. Nd3 {[%emt 0:00:53]} Bg7 {[%emt 0:07:03]} 22. Nf4 {[%emt 0:04:41]} e5 {[%emt 0:05:29]} 23. dxe5 {[%emt 0:00:02]} Nxe5 {[%emt 0:06:57]} 24. Ke2 {[%emt 0:00:33]} Nd7 {[%emt 0:00:15]} 25. Rab1 {[%emt 0:02:34]} Bf6 {[%emt 0:03:11]} 26. Nh3 {[%emt 0:07:35]} O-O-O {[%emt 0:08:17]} 27. Ng5 {[%emt 0:00:41]} Bxg5 {[%emt 0:00:04]} 28. Rxg5 {[%emt 0:00:03]} Rhe8 {[%emt 0:00:06]} 29. Rgg1 {[%emt 0:23:00]} Nc5 {[%emt 0:04:43]} 30. Rgd1 {[%emt 0:11:43]} Nd5 {[%emt 0:10:06]} 31. Bxd5 {[%emt 0:00:11]} Rxd5 {[%emt 0:00:05]} 32. Bc3 {[%emt 0:00:06]} Ne6 {[%emt 0:01:35]} 33. Kf2 {[%emt 0:01:17]} Nc7 {[%emt 0:02:43]} 34. h4 {[%emt 0:00:57]} Re6 {[%emt 0:00:04]} 35. Bg7 {[%emt 0:04:33]} Kd7 {[%emt 0:02:57]} 36. Rxd5+ {[%emt 0:00:15]} Nxd5 {[%emt 0:00:04]} 37. Rd1 {[%emt 0:00:05]} Re7 {[%emt 0:03:04]} 38. Bf6 {[%emt 0:00:27]} Rf7 {[%emt 0:00:09]} 39. Bd4 {[%emt 0:00:41]} Ke6 {[%emt 0:01:31]} 40. b3 {[%emt 0:00:00]} c5 {[%emt 0:00:00]} 41. Bb2 {[%emt 0:02:12]} b5 {[%emt 0:02:14]} 42. Ke2 {[%emt 0:02:58]} Re7 {[%emt 0:02:54]} 43. h5 {[%emt 0:02:29]} Kd6 {[%emt 0:07:20]} 44. hxg6 {[%emt 0:00:13]} hxg6 {[%emt 0:00:05]} 45. Bc1 {[%emt 0:01:26]} Kc6 {[%emt 0:00:21]} 46. Rg1 {[%emt 0:01:00]} Re6 {[%emt 0:00:05]} 47. Kd3 {[%emt 0:00:15]} Rd6 {[%emt 0:04:53]} 48. Kc2 {[%emt 0:00:26]} Re6 {[%emt 0:06:22]} 49. e4 {[%emt 0:00:52]} fxe4 {[%emt 0:00:04]} 50. fxe4 {[%emt 0:00:02]} Nb6 {[%emt 0:00:04]} 51. Be3 {[%emt 0:02:21]} Nd7 {[%emt 0:00:14]} 52. Rg5 {[%emt 0:00:25]} b6 {[%emt 0:00:09]} 53. Bf4 {[%emt 0:02:08]} Nf8 {[%emt 0:01:10]} 54. Kd3 {[%emt 0:03:42]} Nd7 {[%emt 0:11:35]} 55. Rg2 {[%emt 0:01:17]} c4+ {[%emt 0:00:30]} 56. bxc4 {[%emt 0:01:09]} Nc5+ {[%emt 0:00:28]} 57. Kc3 {[%emt 0:00:42]} bxc4 {[%emt 0:00:04]} 58. Be3 {[%emt 0:00:41]} Nxe4+ {[%emt 0:01:41]} 59. Kxc4 {[%emt 0:00:36]} Nd6+ {[%emt 0:00:24]} 60. Kd3 {[%emt 0:00:05]} Nf5 {[%emt 0:00:05]} 61. Bg1 {[%emt 0:00:33]} Kb5 {[%emt 0:00:09]} 62. Rb2+ {[%emt 0:00:32]} Ka5 {[%emt 0:00:06]} 63. a4 {[%emt 0:00:41]} Ne7 {[%emt 0:01:41]} 64. Rb5+ {[%emt 0:00:13]} Ka6 {[%emt 0:00:04]} 65. Bd4 {[%emt 0:02:34]} Nc8 {[%emt 0:00:56]} 66. Kc2 {[%emt 0:03:04]} Rc6+ {[%emt 0:01:13]} 67. Kd3 {[%emt 0:02:14]} Nd6 {[%emt 0:00:18]} 68. Rb4 {[%emt 0:01:11]} Nf5 {[%emt 0:01:24]} 69. Bc3 {[%emt 0:00:22]} Rc5 {[%emt 0:03:15]} 70. Rg4 {[%emt 0:02:53]} Rc6 {[%emt 0:00:46]} 71. Be5 {[%emt 0:00:47]} Ne7 {[%emt 0:00:53]} 72. Bc3 {[%emt 0:01:45]} Rc8 {[%emt 0:01:55]} 73. Rd4 {[%emt 0:01:49]} Nf5 {[%emt 0:00:32]} 74. Rd7 {[%emt 0:01:03]} Rc6 {[%emt 0:00:36]} 75. Bd2 {[%emt 0:02:24]} Nd6 {[%emt 0:00:06]} 76. Re7 {[%emt 0:03:46]} Nb7 {[%emt 0:00:18]} 77. Be3 {[%emt 0:01:38]} Nc5+ {[%emt 0:00:38]} 78. Bxc5 {[%emt 0:00:04]} Rxc5 {[%emt 0:00:03]} 79. Re6 {[%emt 0:00:17]} g5 {[%emt 0:01:23]} 80. Rg6 {[%emt 0:00:06]} Ka5 {[%emt 0:00:37]} 81. Kd4 {[%emt 0:00:54]} Rf5 {[%emt 0:00:05]} 82. Kc3 {[%emt 0:00:31]} Rf3+ {[%emt 0:00:08]} 83. Kb2 {[%emt 0:00:40]} Rg3 {[%emt 0:00:25]} 84. Kc2 {[%emt 0:00:39]} g4 {[%emt 0:00:17]} 85. Kb2 {[%emt 0:00:04]} Rg1 {[%emt 0:01:01]} 86. Kc2 {[%emt 0:02:52]} Rg2+ {[%emt 0:00:54]} 87. Kb3 {[%emt 0:00:30]} Rg3+ {[%emt 0:00:03]} 88. Kb2 {[%emt 0:00:20]} Rg1 {[%emt 0:00:03]} 89. Kc2 {[%emt 0:00:22]} g3 {[%emt 0:01:01]} 90. Kb3 {[%emt 0:00:44]} g2 {[%emt 0:00:04]} 91. Rg5+ {[%emt 0:00:03]} b5 {[%emt 0:00:03]} 92. Kb2 {[%emt 0:00:16]} Kxa4 {[%emt 0:00:05]} 93. Rg4+ {[%emt 0:00:17]} Ka5 {[%emt 0:00:14]} 94. Rg8 {[%emt 0:00:15]} Kb6 {[%emt 0:01:01]} 95. Rg7 {[%emt 0:00:07]} Kc5 {[%emt 0:00:03]} 96. Rg8 {[%emt 0:00:03]} Kd4 {[%emt 0:01:32]} 97. Rg7 {[%emt 0:00:08]} Ke3 {[%emt 0:00:03]} 98. Rg8 {[%emt 0:00:18]} Kf3 {[%emt 0:00:04]} 99. Rf8+ {[%emt 0:00:04]} Ke4 {[%emt 0:00:07]} 100. Rg8 {[%emt 0:00:05]} b4 {[%emt 0:00:03]} 101. Rg7 {[%emt 0:00:10]} b3 {[%emt 0:00:04]} 102. Rg8 {[%emt 0:00:21]} Kf3 {[%emt 0:00:41]} 1/2-1/2

[Event "55th Rubinstein Memorial-A 2019"]
[Site "Polanica-Zdroj"]
[Date "2019.08.24"]
[Round "8.2"]
[White "Kosakowski, Jakub"]
[Black "Kozak, Antoni"]
[Result "0-1"]
[ECO "E44"]
[WhiteElo "2401"]
[BlackElo "2354"]
[Annotator "NA"]
[PlyCount "56"]
[EventDate "2019.08.17"]
[EventType "swiss"]
[EventCountry "POL"]
[SourceTitle "playchess.com"]
[Source "ChessBase"]
[SourceQuality "1"]
[TimeControl "40/5400+30:1800+30"]

1. d4 {[%emt 0:00:24]} Nf6 {[%emt 0:00:22]} 2. c4 {[%emt 0:00:09]} e6 {[%emt 0:00:25]} 3. Nc3 {[%emt 0:00:26]} Bb4 {[%emt 0:00:57]} 4. e3 {[%emt 0:00:43]} b6 {[%emt 0:00:33]} 5. Nge2 {[%emt 0:03:18]} c5 {[%emt 0:00:06]} 6. a3 {[%emt 0:01:04]} Ba5 {[%emt 0:00:05]} 7. Rb1 {[%emt 0:03:06]} Na6 {[%emt 0:00:07]} 8. g3 {[%emt 0:12:14]} Bb7 {[%emt 0:00:04]} 9. d5 {[%emt 0:00:06]} b5 {[%emt 0:00:01]} 10. Bg2 {[%emt 0:00:55]} bxc4 {[%emt 0:06:16]} 11. e4 {[%emt 0:01:01]} O-O {[%emt 0:00:05]} 12. O-O {[%emt 0:00:10]} exd5 {[%emt 0:00:02]} 13. exd5 {[%emt 0:00:13]} d6 {[%emt 0:08:04]} 14. Qa4 {[%emt 0:02:49]} Bxc3 {[%emt 0:08:48]} 15. bxc3 {[%emt 0:07:23]} Qc8 {[%emt 0:00:06]} 16. Bg5 {[%emt 0:26:59]} Nd7 {[%emt 0:23:05]} 17. Qxc4 {[%emt 0:05:34]} Nc7 {[%emt 0:03:06]} 18. Qg4 {[%emt 0:08:21]} Nb6 {[%emt 0:03:07]} 19. Qxc8 {[%emt 0:09:50]} Rfxc8 {[%emt 0:00:13]} 20. Rfd1 {[%emt 0:04:40]} Re8 {[%emt 0:03:21]} 21. Nc1 {[%emt 0:01:18]} Bxd5 {[%emt 0:03:54]} 22. Nb3 {[%emt 0:03:12]} Bxg2 {[%emt 0:00:34]} 23. Kxg2 {[%emt 0:00:04]} f6 {[%emt 0:02:20]} 24. Bf4 {[%emt 0:01:47]} Ncd5 {[%emt 0:00:21]} 25. Bxd6 {[%emt 0:00:14]} c4 {[%emt 0:00:25]} 26. Nd2 {[%emt 0:02:11]} Nxc3 {[%emt 0:00:09]} 27. Rxb6 {[%emt 0:00:08]} axb6 {[%emt 0:00:13]} 28. Rc1 {[%emt 0:00:04]} Ne4 {[%emt 0:00:12]} 0-1

[Event "55th Rubinstein Memorial-A 2019"]
[Site "Polanica-Zdroj"]
[Date "2019.08.24"]
[Round "8.3"]
[White "Oglaza, Oskar"]
[Black "Lewtak, Damian"]
[Result "1/2-1/2"]
[ECO "D02"]
[WhiteElo "2367"]
[BlackElo "2354"]
[Annotator "NA"]
[PlyCount "108"]
[EventDate "2019.08.17"]
[EventType "swiss"]
[EventCountry "POL"]
[SourceTitle "playchess.com"]
[Source "ChessBase"]
[SourceQuality "1"]
[TimeControl "40/5400+30:1800+30"]

1. d4 d5 {[%emt 0:03:03]} 2. Nf3 {[%emt 0:00:43]} e6 {[%emt 0:01:43]} 3. c4 {[%emt 0:01:28]} c6 {[%emt 0:00:04]} 4. Nc3 {[%emt 0:02:06]} f5 {[%emt 0:00:26]} 5. Ne5 {[%emt 0:03:20]} Nd7 {[%emt 0:02:23]} 6. Bf4 {[%emt 0:08:50]} Nxe5 {[%emt 0:04:02]} 7. Bxe5 {[%emt 0:00:05]} Nf6 {[%emt 0:01:38]} 8. e3 {[%emt 0:05:50]} Bb4 {[%emt 0:06:05]} 9. Bd3 {[%emt 0:07:08]} O-O {[%emt 0:02:14]} 10. O-O {[%emt 0:03:28]} a5 {[%emt 0:19:19]} 11. c5 {[%emt 0:04:10]} Bxc3 {[%emt 0:07:00]} 12. bxc3 {[%emt 0:00:29]} Rf7 {[%emt 0:00:35]} 13. Bxf6 {[%emt 0:11:14]} Qxf6 {[%emt 0:03:39]} 14. f4 {[%emt 0:00:06]} Bd7 {[%emt 0:00:44]} 15. Rb1 {[%emt 0:02:40]} Be8 {[%emt 0:02:38]} 16. Qf3 {[%emt 0:07:49]} Qh4 {[%emt 0:03:56]} 17. Rb6 {[%emt 0:12:06]} Ra7 {[%emt 0:00:55]} 18. Rb2 {[%emt 0:06:33]} Re7 {[%emt 0:00:36]} 19. g3 {[%emt 0:01:17]} Qh3 {[%emt 0:04:20]} 20. Be2 {[%emt 0:01:23]} Rd7 {[%emt 0:04:10]} 21. Kh1 {[%emt 0:04:11]} Bg6 {[%emt 0:02:46]} 22. Rfb1 {[%emt 0:02:13]} Rc7 {[%emt 0:02:02]} 23. Qg2 {[%emt 0:08:21]} Qh6 {[%emt 0:01:09]} 24. Qf3 {[%emt 0:00:20]} Qh3 {[%emt 0:00:06]} 25. Qf2 {[%emt 0:02:07]} Bh5 {[%emt 0:01:34]} 26. Bf1 {[%emt 0:00:01]} Qg4 {[%emt 0:00:06]} 27. Bg2 {[%emt 0:00:01]} Qg6 {[%emt 0:01:36]} 28. h3 {[%emt 0:00:02]} Qf7 {[%emt 0:01:40]} 29. Bf1 {[%emt 0:00:40]} Qf6 {[%emt 0:10:00]} 30. Bd3 {[%emt 0:00:20]} Rf7 {[%emt 0:00:22]} 31. Rg1 {[%emt 0:01:26]} Qh6 {[%emt 0:01:51]} 32. Qf1 {[%emt 0:00:46]} Ra8 {[%emt 0:02:59]} 33. Rh2 {[%emt 0:00:12]} Qf6 {[%emt 0:00:08]} 34. g4 {[%emt 0:01:37]} Bg6 {[%emt 0:00:06]} 35. g5 {[%emt 0:00:34]} Qd8 {[%emt 0:00:18]} 36. Qf3 {[%emt 0:01:27]} b6 {[%emt 0:00:50]} 37. cxb6 {[%emt 0:01:14]} Rb7 {[%emt 0:00:05]} 38. Rb2 {[%emt 0:00:10]} Rab8 {[%emt 0:00:38]} 39. Rgb1 {[%emt 0:00:23]} Rxb6 {[%emt 0:00:37]} 40. Qe2 {[%emt 0:00:00]} Rxb2 {[%emt 0:00:00]} 41. Rxb2 {[%emt 0:00:52]} h6 {[%emt 0:06:59]} 42. h4 {[%emt 0:04:07]} hxg5 {[%emt 0:00:26]} 43. fxg5 {[%emt 0:02:16]} Rxb2 {[%emt 0:04:56]} 44. Qxb2 {[%emt 0:00:07]} Qc7 {[%emt 0:00:04]} 45. Qh2 {[%emt 0:00:30]} Qf7 {[%emt 0:06:45]} 46. Qb8+ {[%emt 0:04:27]} Kh7 {[%emt 0:00:16]} 47. Qd6 {[%emt 0:01:15]} f4 {[%emt 0:04:03]} 48. Bxg6+ {[%emt 0:03:07]} Qxg6 {[%emt 0:00:05]} 49. exf4 {[%emt 0:02:20]} Qb1+ {[%emt 0:11:20]} 50. Kg2 {[%emt 0:00:33]} Qxa2+ {[%emt 0:04:52]} 51. Kg3 {[%emt 0:04:52]} Qc4 {[%emt 0:01:14]} 52. Qxe6 {[%emt 0:03:41]} Qxc3+ {[%emt 0:02:32]} 53. Kg4 {[%emt 0:01:19]} Qxd4 {[%emt 0:00:32]} 54. Qf5+ {[%emt 0:00:57]} g6 {[%emt 0:01:43]} 1/2-1/2

[Event "55th Rubinstein Memorial-A 2019"]
[Site "Polanica-Zdroj"]
[Date "2019.08.24"]
[Round "8.4"]
[White "Marszalek, Maciej"]
[Black "Grabarczyk, Miroslaw"]
[Result "1/2-1/2"]
[ECO "A06"]
[WhiteElo "2295"]
[BlackElo "2362"]
[Annotator "ChessBase"]
[PlyCount "25"]
[EventDate "2019.08.17"]
[EventType "swiss"]
[EventCountry "POL"]
[SourceTitle "playchess.com"]
[Source "ChessBase"]
[SourceQuality "1"]
[TimeControl "40/5400+30:1800+30"]

1. Nf3 {[%emt 0:00:00]} d5 {[%emt 0:00:00]} 2. c4 {[%emt 0:00:00]} e6 {[%emt 0:00:01]} 3. d4 {[%emt 0:00:13]} Nf6 {[%emt 0:00:26]} 4. g3 {[%emt 0:00:26]} Bb4+ {[%emt 0:00:21]} 5. Bd2 {[%emt 0:00:37]} Be7 {[%emt 0:00:34]} 6. Bg2 {[%emt 0:00:07]} O-O {[%emt 0:00:23]} 7. O-O {[%emt 0:00:34]} c6 {[%emt 0:00:56]} 8. Qc2 {[%emt 0:02:35]} Nbd7 {[%emt 0:00:23]} 9. Bf4 {[%emt 0:01:07]} Nh5 {[%emt 0:00:45]} 10. Bc1 {[%emt 0:00:34]} Nhf6 {[%emt 0:00:18]} 11. Bf4 {[%emt 0:02:02]} Nh5 {[%emt 0:00:38]} 12. Bc1 {[%emt 0:00:39]} Nhf6 {[%emt 0:00:10]} 13. Bf4 {[%emt 0:00:31]} 1/2-1/2

[Event "55th Rubinstein Memorial-A 2019"]
[Site "Polanica-Zdroj"]
[Date "2019.08.24"]
[Round "8.5"]
[White "Mis, Mieszko"]
[Black "Jaskolka, Tomasz"]
[Result "1-0"]
[ECO "D71"]
[WhiteElo "2296"]
[BlackElo "2227"]
[Annotator "NA"]
[PlyCount "83"]
[EventDate "2019.08.17"]
[EventType "swiss"]
[EventCountry "POL"]
[SourceTitle "playchess.com"]
[Source "ChessBase"]
[SourceQuality "1"]
[TimeControl "40/5400+30:1800+30"]

1. d4 {[%emt 0:00:00]} Nf6 {[%emt 0:00:00]} 2. c4 {[%emt 0:00:00]} g6 {[%emt 0:00:00]} 3. g3 {[%emt 0:00:05]} c6 {[%emt 0:00:21]} 4. Bg2 {[%emt 0:00:14]} d5 {[%emt 0:00:07]} 5. Qa4 {[%emt 0:00:34]} Bg7 {[%emt 0:01:55]} 6. cxd5 {[%emt 0:00:16]} Nxd5 {[%emt 0:01:20]} 7. Nf3 {[%emt 0:00:18]} Nb6 {[%emt 0:01:44]} 8. Qc2 {[%emt 0:00:39]} Bg4 {[%emt 0:08:03]} 9. e3 {[%emt 0:07:20]} N8d7 {[%emt 0:02:46]} 10. O-O {[%emt 0:05:33]} Bxf3 {[%emt 0:10:43]} 11. Bxf3 {[%emt 0:00:02]} e5 {[%emt 0:00:09]} 12. a4 {[%emt 0:12:58]} exd4 {[%emt 0:07:51]} 13. exd4 {[%emt 0:03:25]} O-O {[%emt 0:04:36]} 14. a5 {[%emt 0:04:57]} Nd5 {[%emt 0:05:43]} 15. Nc3 {[%emt 0:04:15]} N7f6 {[%emt 0:05:11]} 16. Nxd5 {[%emt 0:05:30]} Nxd5 {[%emt 0:01:29]} 17. Qb3 {[%emt 0:03:57]} Qd7 {[%emt 0:06:40]} 18. Rd1 {[%emt 0:01:40]} Rfe8 {[%emt 0:02:42]} 19. Kg2 {[%emt 0:09:34]} Re6 {[%emt 0:03:44]} 20. Ra4 {[%emt 0:06:34]} Rae8 {[%emt 0:10:52]} 21. Bd2 {[%emt 0:06:02]} a6 {[%emt 0:00:36]} 22. Bxd5 {[%emt 0:02:33]} cxd5 {[%emt 0:07:56]} 23. Rb4 {[%emt 0:01:28]} Re2 {[%emt 0:02:11]} 24. Bf4 {[%emt 0:05:41]} Qf5 {[%emt 0:07:20]} 25. Qd3 {[%emt 0:02:54]} R8e4 {[%emt 0:01:26]} 26. Qf3 {[%emt 0:04:13]} h5 {[%emt 0:03:53]} 27. h4 {[%emt 0:02:45]} Rc2 {[%emt 0:00:12]} 28. Be3 {[%emt 0:01:58]} Qe6 {[%emt 0:01:36]} 29. Rd3 {[%emt 0:00:40]} Qc6 {[%emt 0:01:32]} 30. Rb6 {[%emt 0:00:49]} Qc4 {[%emt 0:00:29]} 31. Rxb7 {[%emt 0:00:20]} f5 {[%emt 0:00:03]} 32. Rc3 {[%emt 0:01:18]} Rxc3 {[%emt 0:01:20]} 33. bxc3 {[%emt 0:00:01]} Qa2 {[%emt 0:00:41]} 34. Rb6 {[%emt 0:00:21]} Kh7 {[%emt 0:00:38]} 35. Rxa6 {[%emt 0:00:25]} Qc4 {[%emt 0:01:03]} 36. Ra7 {[%emt 0:00:10]} Qb5 {[%emt 0:00:13]} 37. Qd1 {[%emt 0:01:37]} Qb8 {[%emt 0:00:22]} 38. Ra6 {[%emt 0:01:31]} Qc8 {[%emt 0:00:27]} 39. Qd3 {[%emt 0:00:33]} Bf8 {[%emt 0:01:00]} 40. Ra7+ {[%emt 0:00:00]} Bg7 {[%emt 0:00:00]} 41. Qa6 {[%emt 0:00:44]} Qxc3 {[%emt 0:03:31]} 42. Qb7 {[%emt 0:00:18]} 1-0

[Event "55th Rubinstein Memorial-A 2019"]
[Site "Polanica-Zdroj"]
[Date "2019.08.24"]
[Round "8.6"]
[White "Kucza, Karol"]
[Black "Cukrowski, Filip"]
[Result "1/2-1/2"]
[ECO "C70"]
[WhiteElo "2296"]
[BlackElo "2424"]
[Annotator "NA"]
[PlyCount "122"]
[EventDate "2019.08.17"]
[EventType "swiss"]
[EventCountry "POL"]
[SourceTitle "playchess.com"]
[Source "ChessBase"]
[SourceQuality "1"]
[TimeControl "40/5400+30:1800+30"]

1. e4 {[%emt 0:09:28]} e5 {[%emt 0:01:22]} 2. Nf3 {[%emt 0:00:39]} Nc6 {[%emt 0:00:07]} 3. Bb5 {[%emt 0:00:23]} a6 {[%emt 0:00:06]} 4. Ba4 {[%emt 0:00:06]} g6 {[%emt 0:00:06]} 5. d4 {[%emt 0:06:42]} exd4 {[%emt 0:04:29]} 6. Nxd4 {[%emt 0:00:49]} Bg7 {[%emt 0:00:05]} 7. Nxc6 {[%emt 0:00:09]} dxc6 {[%emt 0:00:04]} 8. Qxd8+ {[%emt 0:00:14]} Kxd8 {[%emt 0:00:05]} 9. Bb3 {[%emt 0:03:42]} Ke7 {[%emt 0:03:32]} 10. Bg5+ {[%emt 0:08:26]} Bf6 {[%emt 0:03:58]} 11. Bxf6+ {[%emt 0:00:08]} Nxf6 {[%emt 0:00:05]} 12. Nd2 {[%emt 0:00:06]} Nd7 {[%emt 0:04:29]} 13. f3 {[%emt 0:08:39]} Nc5 {[%emt 0:00:45]} 14. Ke2 {[%emt 0:00:46]} a5 {[%emt 0:00:51]} 15. c3 {[%emt 0:10:40]} b6 {[%emt 0:03:55]} 16. Bc2 {[%emt 0:00:50]} Rd8 {[%emt 0:00:32]} 17. Rhd1 {[%emt 0:01:32]} Ba6+ {[%emt 0:03:52]} 18. Ke3 {[%emt 0:01:36]} a4 {[%emt 0:19:13]} 19. b4 {[%emt 0:06:01]} Nd3 {[%emt 0:09:56]} 20. a3 {[%emt 0:06:01]} Ne5 {[%emt 0:01:34]} 21. Rac1 {[%emt 0:07:34]} Rd6 {[%emt 0:10:34]} 22. Nb1 {[%emt 0:00:53]} Nc4+ {[%emt 0:03:03]} 23. Kf2 {[%emt 0:00:06]} Bb5 {[%emt 0:00:41]} 24. Rxd6 {[%emt 0:01:20]} cxd6 {[%emt 0:03:23]} 25. Bd1 {[%emt 0:01:18]} Ne5 {[%emt 0:02:49]} 26. Be2 {[%emt 0:00:22]} Bxe2 {[%emt 0:00:24]} 27. Kxe2 {[%emt 0:00:06]} Nc4 {[%emt 0:00:06]} 28. Rc2 {[%emt 0:01:22]} d5 {[%emt 0:00:11]} 29. exd5 {[%emt 0:00:10]} cxd5 {[%emt 0:00:06]} 30. Ra2 {[%emt 0:00:31]} Kd6 {[%emt 0:01:34]} 31. Nd2 {[%emt 0:00:47]} Re8+ {[%emt 0:00:05]} 32. Kd3 {[%emt 0:04:24]} Ne5+ {[%emt 0:05:26]} 33. Kd4 {[%emt 0:00:06]} Nc6+ {[%emt 0:01:03]} 34. Kd3 {[%emt 0:00:04]} Ne5+ {[%emt 0:03:24]} 35. Kc2 {[%emt 0:09:06]} f5 {[%emt 0:02:25]} 36. Ra1 {[%emt 0:00:26]} Rc8 {[%emt 0:02:33]} 37. f4 {[%emt 0:00:47]} Ng4 {[%emt 0:00:29]} 38. Kd3 {[%emt 0:00:16]} Nf2+ {[%emt 0:03:44]} 39. Ke2 {[%emt 0:01:24]} Ne4 {[%emt 0:00:20]} 40. Nxe4+ {[%emt 0:00:00]} dxe4 {[%emt 0:00:00]} 41. Kd2 {[%emt 0:00:14]} b5 {[%emt 0:00:38]} 42. Kc2 {[%emt 0:00:29]} h6 {[%emt 0:00:20]} 43. Rd1+ {[%emt 0:01:12]} Ke6 {[%emt 0:00:04]} 44. Rd4 {[%emt 0:01:19]} g5 {[%emt 0:00:13]} 45. fxg5 {[%emt 0:00:33]} hxg5 {[%emt 0:00:07]} 46. g4 {[%emt 0:00:05]} Rh8 {[%emt 0:00:39]} 47. gxf5+ {[%emt 0:00:06]} Kxf5 {[%emt 0:00:04]} 48. Rd2 {[%emt 0:12:38]} Rh3 {[%emt 0:00:14]} 49. Rf2+ {[%emt 0:02:01]} Ke5 {[%emt 0:00:18]} 50. Rg2 {[%emt 0:00:29]} Kf4 {[%emt 0:00:08]} 51. Rf2+ {[%emt 0:00:59]} Ke3 {[%emt 0:04:32]} 52. Rg2 {[%emt 0:00:45]} Kf3 {[%emt 0:01:07]} 53. Rxg5 {[%emt 0:00:07]} Rxh2+ {[%emt 0:00:03]} 54. Kd1 {[%emt 0:00:44]} e3 {[%emt 0:00:59]} 55. Rf5+ {[%emt 0:00:16]} Ke4 {[%emt 0:01:30]} 56. Rxb5 {[%emt 0:00:27]} Ra2 {[%emt 0:03:57]} 57. Rb8 {[%emt 0:03:27]} Rxa3 {[%emt 0:01:06]} 58. b5 {[%emt 0:02:11]} Kd3 {[%emt 0:00:39]} 59. Rd8+ {[%emt 0:00:12]} Kxc3 {[%emt 0:00:22]} 60. b6 {[%emt 0:12:54]} Rb3 {[%emt 0:00:19]} 61. Ra8 {[%emt 0:00:07]} Rxb6 {[%emt 0:09:32]} 1/2-1/2

[Event "55th Rubinstein Memorial-A 2019"]
[Site "Polanica-Zdroj"]
[Date "2019.08.24"]
[Round "8.7"]
[White "Lapaj, Mateusz"]
[Black "Psyk, Radoslaw"]
[Result "0-1"]
[ECO "B46"]
[WhiteElo "2233"]
[BlackElo "2326"]
[Annotator "NA"]
[PlyCount "134"]
[EventDate "2019.08.17"]
[EventType "swiss"]
[EventCountry "POL"]
[SourceTitle "playchess.com"]
[Source "ChessBase"]
[SourceQuality "1"]
[TimeControl "40/5400+30:1800+30"]

1. e4 {[%emt 0:04:08]} c5 {[%emt 0:00:00]} 2. Nf3 {[%emt 0:00:06]} e6 {[%emt 0:00:06]} 3. d4 {[%emt 0:00:04]} cxd4 {[%emt 0:00:04]} 4. Nxd4 {[%emt 0:00:04]} Nc6 {[%emt 0:03:35]} 5. Nc3 {[%emt 0:00:09]} a6 {[%emt 0:01:12]} 6. g3 {[%emt 0:00:08]} Qc7 {[%emt 0:06:13]} 7. Bg2 {[%emt 0:00:32]} Nf6 {[%emt 0:03:34]} 8. O-O {[%emt 0:00:12]} d6 {[%emt 0:00:09]} 9. Re1 {[%emt 0:00:20]} Bd7 {[%emt 0:00:58]} 10. Nxc6 {[%emt 0:00:07]} bxc6 {[%emt 0:06:41]} 11. Na4 {[%emt 0:00:10]} e5 {[%emt 0:09:48]} 12. c4 {[%emt 0:01:11]} c5 {[%emt 0:03:40]} 13. Nc3 {[%emt 0:08:05]} Be7 {[%emt 0:04:52]} 14. Bg5 {[%emt 0:09:27]} Bc6 {[%emt 0:00:39]} 15. Qd2 {[%emt 0:15:00]} O-O {[%emt 0:01:06]} 16. Rad1 {[%emt 0:01:43]} Ne8 {[%emt 0:05:25]} 17. Be3 {[%emt 0:05:05]} Rd8 {[%emt 0:10:41]} 18. f4 {[%emt 0:10:48]} exf4 {[%emt 0:00:49]} 19. gxf4 {[%emt 0:01:31]} Nf6 {[%emt 0:03:15]} 20. Qe2 {[%emt 0:10:53]} Rfe8 {[%emt 0:01:02]} 21. Nd5 {[%emt 0:02:57]} Bxd5 {[%emt 0:01:41]} 22. cxd5 {[%emt 0:00:16]} Bf8 {[%emt 0:01:10]} 23. Qc2 {[%emt 0:01:56]} g6 {[%emt 0:06:58]} 24. b4 {[%emt 0:03:23]} c4 {[%emt 0:07:01]} 25. Bd4 {[%emt 0:06:48]} Nh5 {[%emt 0:03:21]} 26. Qf2 {[%emt 0:03:54]} Qd7 {[%emt 0:05:51]} 27. f5 {[%emt 0:07:35]} Bg7 {[%emt 0:08:07]} 28. f6 {[%emt 0:01:07]} Bh8 {[%emt 0:00:49]} 29. Qh4 {[%emt 0:00:21]} Re5 {[%emt 0:00:10]} 30. Bxe5 {[%emt 0:00:28]} dxe5 {[%emt 0:00:02]} 31. Rc1 {[%emt 0:02:51]} Bxf6 {[%emt 0:02:13]} 32. Qh3 {[%emt 0:00:30]} Qb5 {[%emt 0:00:38]} 33. Qc3 {[%emt 0:01:11]} Bh4 {[%emt 0:03:57]} 34. Rf1 {[%emt 0:00:30]} Nf4 {[%emt 0:00:22]} 35. Rxf4 {[%emt 0:02:39]} exf4 {[%emt 0:00:03]} 36. Qxc4 {[%emt 0:00:07]} Qb6+ {[%emt 0:00:13]} 37. Qc5 {[%emt 0:00:20]} Qf6 {[%emt 0:00:06]} 38. Qc3 {[%emt 0:01:00]} Qg5 {[%emt 0:00:58]} 39. Kh1 {[%emt 0:00:19]} Bf2 {[%emt 0:00:15]} 40. a4 {[%emt 0:00:00]} Be3 {[%emt 0:00:00]} 41. Rf1 {[%emt 0:07:22]} f3 {[%emt 0:15:01]} 42. Rxf3 {[%emt 0:03:16]} Bf4 {[%emt 0:00:14]} 43. Rf1 {[%emt 0:00:25]} Be5 {[%emt 0:01:00]} 44. Qf3 {[%emt 0:03:27]} Qh4 {[%emt 0:06:13]} 45. Qh3 {[%emt 0:04:39]} Qe7 {[%emt 0:00:19]} 46. b5 {[%emt 0:00:41]} axb5 {[%emt 0:00:46]} 47. axb5 {[%emt 0:00:01]} Qb4 {[%emt 0:03:44]} 48. Qd3 {[%emt 0:01:08]} Qd6 {[%emt 0:00:33]} 49. Qf3 {[%emt 0:00:45]} Rf8 {[%emt 0:00:21]} 50. Qh3 {[%emt 0:03:44]} Ra8 {[%emt 0:01:05]} 51. Qf3 {[%emt 0:00:37]} Ra7 {[%emt 0:01:01]} 52. Bh3 {[%emt 0:03:13]} Kg7 {[%emt 0:01:24]} 53. Rf2 {[%emt 0:01:38]} Qb4 {[%emt 0:01:41]} 54. Bf1 {[%emt 0:02:56]} h5 {[%emt 0:00:09]} 55. Bd3 {[%emt 0:01:59]} Qe1+ {[%emt 0:01:15]} 56. Kg2 {[%emt 0:00:58]} Bd4 {[%emt 0:01:09]} 57. b6 {[%emt 0:01:43]} Bxf2 {[%emt 0:01:39]} 58. bxa7 {[%emt 0:00:10]} Bxa7 {[%emt 0:00:30]} 59. d6 {[%emt 0:00:39]} Qg1+ {[%emt 0:01:03]} 60. Kh3 {[%emt 0:00:01]} Qd4 {[%emt 0:00:50]} 61. Qg3 {[%emt 0:00:36]} Bc5 {[%emt 0:01:11]} 62. e5 {[%emt 0:02:09]} h4 {[%emt 0:00:02]} 63. Qf3 {[%emt 0:00:27]} Qxe5 {[%emt 0:00:09]} 64. d7 {[%emt 0:00:09]} Qd6 {[%emt 0:01:03]} 65. Bc4 {[%emt 0:00:41]} Qxd7+ {[%emt 0:00:20]} 66. Kxh4 {[%emt 0:00:13]} Be7+ {[%emt 0:00:12]} 67. Kg3 {[%emt 0:00:02]} Qc7+ {[%emt 0:00:01]} 0-1